[Event "IND-ch Senior Open 2019"]
[Site "Mazitar"]
[Date "2019.12.11"]
[Round "2.10"]
[White "Gokhale, Chandrashekhar"]
[Black "Anurag, Mhamal"]
[Result "0-1"]
[ECO "A05"]
[WhiteElo "2185"]
[BlackElo "2490"]
[Annotator "ChessBase"]
[PlyCount "94"]
[EventDate "2018.12.08"]
[EventType "swiss"]
[EventRounds "11"]
[EventCountry "IND"]
[SourceTitle "playchess.com"]
[Source "ChessBase"]
[SourceQuality "1"]
[TimeControl "40/5400+30:1800+30"]

1. Nf3 {[%emt 0:00:00]} Nf6 {[%emt 0:00:01]} 2. g3 {[%emt 0:00:02]} b6 {[%emt 0:00:01]} 3. Bg2 {[%emt 0:00:02]} Bb7 {[%emt 0:00:01]} 4. O-O {[%emt 0:00:04]} g6 {[%emt 0:00:01]} 5. d3 {[%emt 0:00:03]} d5 {[%emt 0:00:01]} 6. b3 {[%emt 0:00:03]} Bg7 {[%emt 0:00:01]} 7. Bb2 {[%emt 0:00:04]} O-O {[%emt 0:00:01]} 8. Nbd2 {[%emt 0:00:02]} c5 {[%emt 0:00:01]} 9. e3 {[%emt 0:00:02]} Qc7 {[%emt 0:36:25]} 10. Qe2 {[%emt 0:00:02]} Nc6 {[%emt 0:00:01]} 11. c4 {[%emt 0:00:02]} e5 {[%emt 0:00:00]} 12. cxd5 {[%emt 0:01:01]} Nxd5 {[%emt 0:00:01]} 13. Rac1 {[%emt 0:00:02]} Rad8 {[%emt 0:08:44]} 14. a3 {[%emt 0:00:03]} Qe7 {[%emt 0:14:11]} 15. Rfd1 {[%emt 0:00:01]} Rfe8 {[%emt 0:17:55]} 16. Nb1 {[%emt 0:00:01]} Ba6 {[%emt 0:00:00]} 17. e4 {[%emt 0:00:17]} Nc7 {[%emt 0:00:00]} 18. Nc3 {[%emt 0:00:02]} Bh6 {[%emt 0:00:00]} 19. Ra1 {[%emt 0:00:01]} Qe6 {[%emt 0:00:00]} 20. Qc2 {[%emt 0:00:02]} Nd4 {[%emt 0:00:00]} 21. Nxd4 {[%emt 0:00:02]} cxd4 {[%emt 0:00:00]} 22. Ne2 {[%emt 0:00:02]} Rc8 {[%emt 0:00:00]} 23. b4 {[%emt 0:00:02]} Bb5 {[%emt 0:00:00]} 24. a4 {[%emt 0:00:03]} Na6 {[%emt 0:00:00]} 25. Qb1 {[%emt 0:00:03]} Bd7 {[%emt 0:00:00]} 26. Bc1 {[%emt 0:00:04]} Bxc1 {[%emt 0:00:00]} 27. Rxc1 {[%emt 0:00:01]} Rxc1+ {[%emt 0:00:00]} 28. Nxc1 {[%emt 0:00:02]} Rc8 {[%emt 0:00:00]} 29. Ne2 {[%emt 0:00:03]} Qd6 {[%emt 0:00:00]} 30. b5 {[%emt 0:00:01]} Nb4 {[%emt 0:00:00]} 31. f4 {[%emt 0:00:02]} Rc2 {[%emt 0:00:00]} 32. fxe5 {[%emt 0:00:02]} Qxe5 33. Qxb4 {[%emt 0:00:02]} Rxe2 {[%emt 0:00:00]} 34. a5 {[%emt 0:00:03]} bxa5 {[%emt 0:00:00]} 35. Qxa5 {[%emt 0:00:02]} Qf6 {[%emt 0:00:00]} 36. Rf1 {[%emt 0:00:02]} Rxg2+ {[%emt 0:00:00]} 37. Kxg2 {[%emt 0:00:01]} Bh3+ {[%emt 0:00:00]} 38. Kxh3 {[%emt 0:00:02]} Qxf1+ {[%emt 0:00:00]} 39. Kh4 {[%emt 0:00:02]} Qf6+ {[%emt 0:00:00]} 40. Kh3 {[%emt 0:00:03]} Qf1+ {[%emt 0:00:00]} 41. Kh4 {[%emt 0:30:02]} Qxd3 {[%emt 0:00:00]} 42. Qd8+ {[%emt 0:00:02]} Kg7 {[%emt 0:00:00]} 43. Qd5 {[%emt 0:00:03]} f6 {[%emt 0:00:00]} 44. Qd7+ {[%emt 0:00:02]} Kh6 {[%emt 0:00:00]} 45. Qe7 {[%emt 0:00:02]} g5+ {[%emt 0:00:00]} 46. Kg4 {[%emt 0:00:01]} Qe2+ {[%emt 0:00:00]} 47. Kh3 {[%emt 0:00:01]} g4+ {[%emt 0:00:00]} 0-1

[Event "IND-ch Senior Open 2019"]
[Site "Mazitar"]
[Date "2019.12.11"]
[Round "2.11"]
[White "Vignesh N R"]
[Black "Patil, Pratik"]
[Result "1-0"]
[ECO "C77"]
[WhiteElo "2475"]
[BlackElo "2167"]
[Annotator "ChessBase"]
[PlyCount "103"]
[EventDate "2018.12.08"]
[EventType "swiss"]
[EventRounds "11"]
[EventCountry "IND"]
[SourceTitle "playchess.com"]
[Source "ChessBase"]
[SourceQuality "1"]
[TimeControl "40/5400+30:1800+30"]

1. e4 {[%emt 0:00:00]} e5 {[%emt 0:00:00]} 2. Nf3 {[%emt 0:00:01]} Nc6 {[%emt 0:00:00]} 3. Bb5 {[%emt 0:00:02]} a6 {[%emt 0:00:00]} 4. Ba4 {[%emt 0:00:01]} Nf6 {[%emt 0:00:00]} 5. d3 {[%emt 0:00:01]} d6 {[%emt 0:00:00]} 6. h3 {[%emt 0:00:02]} Be7 {[%emt 0:00:00]} 7. c4 {[%emt 0:00:01]} O-O {[%emt 0:00:00]} 8. Nc3 {[%emt 0:00:02]} h6 {[%emt 0:00:00]} 9. Be3 {[%emt 0:00:02]} Be6 {[%emt 0:00:02]} 10. Qd2 {[%emt 0:00:02]} Nh7 {[%emt 0:00:08]} 11. Bxc6 {[%emt 0:00:46]} bxc6 {[%emt 0:00:03]} 12. d4 {[%emt 0:00:03]} exd4 {[%emt 0:00:00]} 13. Nxd4 {[%emt 0:00:03]} Qd7 {[%emt 0:00:01]} 14. b3 {[%emt 0:00:03]} f5 {[%emt 0:00:01]} 15. O-O {[%emt 0:00:09]} Ng5 {[%emt 0:00:04]} 16. Bxg5 {[%emt 0:00:12]} Bxg5 {[%emt 0:00:01]} 17. f4 {[%emt 0:00:01]} Bf6 {[%emt 0:00:04]} 18. Rae1 {[%emt 0:00:03]} fxe4 {[%emt 0:00:01]} 19. Nxe4 {[%emt 0:00:04]} Bxd4+ {[%emt 0:00:01]} 20. Qxd4 {[%emt 0:00:04]} Rae8 {[%emt 0:00:03]} 21. Kh2 {[%emt 0:00:03]} c5 {[%emt 0:00:01]} 22. Qd2 {[%emt 0:00:04]} Bf5 {[%emt 0:00:01]} 23. Nc3 {[%emt 0:00:06]} Qf7 {[%emt 0:00:03]} 24. g4 {[%emt 0:00:03]} Bd7 {[%emt 0:00:01]} 25. Qd5 {[%emt 0:00:03]} Be6 {[%emt 0:00:01]} 26. Qd3 {[%emt 0:00:04]} Bd7 {[%emt 0:00:01]} 27. Qd5 {[%emt 0:00:03]} Be6 {[%emt 0:00:01]} 28. Qf3 {[%emt 0:00:03]} Bd7 {[%emt 0:00:01]} 29. f5 {[%emt 0:00:03]} Rxe1 {[%emt 0:00:03]} 30. Rxe1 {[%emt 0:00:00]} Re8 {[%emt 0:00:01]} 31. Rxe8+ {[%emt 0:00:04]} Qxe8 {[%emt 0:00:01]} 32. Qe4 {[%emt 0:00:01]} Qxe4 {[%emt 0:00:04]} 33. Nxe4 {[%emt 0:00:01]} Bc6 {[%emt 0:00:01]} 34. Nc3 {[%emt 0:00:03]} Kf7 {[%emt 0:00:01]} 35. Kg3 {[%emt 0:00:03]} Bh1 {[%emt 0:00:01]} 36. Kf4 {[%emt 0:00:03]} c6 {[%emt 0:00:01]} 37. h4 {[%emt 0:00:08]} g6 {[%emt 0:00:03]} 38. fxg6+ {[%emt 0:00:01]} Kxg6 {[%emt 0:00:03]} 39. Ne2 {[%emt 0:00:01]} Bg2 {[%emt 0:00:14]} 40. Ng3 {[%emt 0:00:04]} d5 {[%emt 0:00:01]} 41. Nf5 {[%emt 0:30:03]} d4 {[%emt 0:30:01]} 42. h5+ {[%emt 0:00:03]} Kh7 {[%emt 0:00:01]} 43. Nd6 {[%emt 0:00:04]} Kg7 {[%emt 0:00:05]} 44. Nb7 {[%emt 0:00:04]} d3 {[%emt 0:00:03]} 45. Ke3 {[%emt 0:00:00]} Bh3 {[%emt 0:00:03]} 46. Nxc5 {[%emt 0:00:01]} Bxg4 {[%emt 0:00:03]} 47. Nxa6 {[%emt 0:00:06]} Bxh5 {[%emt 0:00:06]} 48. Nc5 {[%emt 0:00:01]} Bg4 {[%emt 0:00:02]} 49. a4 {[%emt 0:00:01]} h5 {[%emt 0:00:02]} 50. a5 {[%emt 0:00:01]} h4 {[%emt 0:00:02]} 51. Nxd3 {[%emt 0:00:03]} Bc8 {[%emt 0:00:03]} 52. Nc5 {[%emt 0:00:05]} 1-0

[Event "IND-ch Senior Open 2019"]
[Site "Mazitar"]
[Date "2019.12.11"]
[Round "2.12"]
[White "Deshmukh, Anup"]
[Black "Kunte, Abhijit"]
[Result "1/2-1/2"]
[ECO "A30"]
[WhiteElo "2168"]
[BlackElo "2467"]
[Annotator "ChessBase"]
[PlyCount "60"]
[EventDate "2018.12.08"]
[EventType "swiss"]
[EventRounds "11"]
[EventCountry "IND"]
[SourceTitle "playchess.com"]
[Source "ChessBase"]
[SourceQuality "1"]
[TimeControl "40/5400+30:1800+30"]

1. c4 {[%emt 0:00:00]} c5 2. Nf3 g6 3. d4 Bg7 4. Nc3 cxd4 5. Nxd4 Nc6 6. e3 Nf6 7. Be2 O-O 8. O-O d5 9. cxd5 Nxd5 10. Nxd5 Qxd5 11. Bf3 Qc5 12. Nxc6 bxc6 13. Qa4 Rb8 14. Rb1 Qb5 15. Qxb5 cxb5 16. Bd2 Bb7 17. Bb4 Bxf3 18. gxf3 Bf6 19. Rfc1 Rfc8 20. b3 Kf8 21. Kf1 Ke8 22. Ke2 Kd7 23. f4 Rxc1 24. Rxc1 Rc8 25. Rxc8 Kxc8 26. Kd3 Kd7 27. Ke2 e6 28. e4 Kc6 29. f3 a6 30. Bd2 Bd8 1/2-1/2

[Event "IND-ch Senior Open 2019"]
[Site "Mazitar"]
[Date "2019.12.11"]
[Round "2.14"]
[White "Manigandan, S S"]
[Black "Shyaamnikhil P"]
[Result "0-1"]
[ECO "D32"]
[WhiteElo "2164"]
[BlackElo "2455"]
[Annotator "ChessBase"]
[PlyCount "44"]
[EventDate "2018.12.08"]
[EventType "swiss"]
[EventRounds "11"]
[EventCountry "IND"]
[SourceTitle "playchess.com"]
[Source "ChessBase"]
[SourceQuality "1"]
[TimeControl "40/5400+30:1800+30"]

1. d4 {[%emt 0:00:00]} Nf6 {[%emt 0:00:00]} 2. c4 {[%emt 0:00:01]} e6 {[%emt 0:00:00]} 3. Nf3 {[%emt 0:00:01]} c5 {[%emt 0:00:00]} 4. e3 {[%emt 0:00:01]} d5 {[%emt 0:00:00]} 5. Nc3 {[%emt 0:00:01]} Nc6 {[%emt 0:00:00]} 6. a3 {[%emt 0:00:03]} a6 {[%emt 0:00:00]} 7. dxc5 {[%emt 0:00:04]} Bxc5 {[%emt 0:00:02]} 8. b4 {[%emt 0:00:01]} Ba7 {[%emt 0:00:00]} 9. c5 {[%emt 0:00:01]} e5 {[%emt 0:00:00]} 10. Qc2 O-O 11. e4 Nd4 12. Nxd4 exd4 13. Nxd5 Nxd5 14. exd5 Qxd5 15. f3 d3 16. Qc3 Bb8 17. Rb1 Re8+ 18. Kd1 Bd7 19. Qxd3 Ba4+ 20. Kd2 Bf4+ 21. Kc3 Be5+ 22. Kd2 Qa2+ 0-1

[Event "IND-ch Senior Open 2019"]
[Site "Mazitar"]
[Date "2019.12.11"]
[Round "2.15"]
[White "Shetty Rahul"]
[Black "Laxman, R.R."]
[Result "0-1"]
[ECO "E20"]
[WhiteElo "2148"]
[BlackElo "2444"]
[Annotator "NA"]
[PlyCount "100"]
[EventDate "2018.12.08"]
[EventType "swiss"]
[EventRounds "11"]
[EventCountry "IND"]
[SourceTitle "playchess.com"]
[Source "ChessBase"]
[SourceQuality "1"]
[TimeControl "40/5400+30:1800+30"]

1. Nf3 d5 2. d4 Nf6 3. c4 e6 4. Nc3 Bb4 5. Bg5 h6 6. Bxf6 Qxf6 7. Qa4+ Nc6 8. Ne5 Bd7 9. Nxd7 Qxd4 10. Qc2 Kxd7 11. e3 Qe5 12. cxd5 exd5 13. Be2 Rhd8 14. O-O Bxc3 15. bxc3 Ke7 16. Rab1 Rab8 17. Rfd1 Kf8 18. Bf3 Ne7 19. c4 c6 20. cxd5 cxd5 21. Rb4 b6 22. Qa4 Rbc8 23. Rbd4 Qb8 24. g4 Rc5 25. h3 Qc7 26. Qb3 Rc3 27. Qb1 Rc4 28. Qb3 Rxd4 29. Rxd4 Qc5 30. Qd1 g5 31. e4 Nc6 32. Rxd5 Rxd5 33. exd5 Nd4 34. Be4 b5 35. Kg2 a5 36. h4 Qc4 37. hxg5 hxg5 38. Qh1 Ne6 39. Qh7 Nf4+ 40. Kg3 Qc3+ 41. Kh2 Qg7 42. Qf5 Qh6+ 43. Kg1 Qh3 44. Qc8+ Kg7 45. Qc2 Qxg4+ 46. Kf1 Qh3+ 47. Kg1 b4 48. d6 Qg4+ 49. Kf1 Qh3+ 50. Kg1 Qe6 0-1

[Event "IND-ch Senior Open 2019"]
[Site "Mazitar"]
[Date "2019.12.11"]
[Round "2.16"]
[White "Das, Sayantan"]
[Black "Srivastava, Y.P."]
[Result "1-0"]
[ECO "B07"]
[WhiteElo "2440"]
[BlackElo "2114"]
[Annotator "NA"]
[PlyCount "76"]
[EventDate "2018.12.08"]
[EventType "swiss"]
[EventRounds "11"]
[EventCountry "IND"]
[SourceTitle "playchess.com"]
[Source "ChessBase"]
[SourceQuality "1"]
[TimeControl "40/5400+30:1800+30"]

1. e4 d6 2. d4 Nf6 3. Bd3 e5 4. c3 Nbd7 5. Nf3 Be7 6. O-O O-O 7. Nbd2 c6 8. Qe2 Re8 9. a4 Qc7 10. a5 h6 11. dxe5 Nxe5 12. Nxe5 dxe5 13. Bc4 Bf8 14. b4 Be6 15. Bxe6 Rxe6 16. Nc4 Nh5 17. Rd1 Qe7 18. g3 Rg6 19. Kh1 Qe6 20. Ne3 Qh3 21. Nf5 Qg4 22. Kg2 Nf4+ 23. Bxf4 exf4 24. f3 Qg5 25. Rd7 Re6 26. Qd2 g6 27. Nd4 Re7 28. Rxe7 Qxe7 29. Qxf4 c5 30. bxc5 Qxc5 31. Rb1 b6 32. axb6 axb6 33. Qd2 Ra3 34. Ne2 g5 35. Rb2 Qc7 36. Qd4 Kh7 37. Qf6 Bc5 38. Qf5+ Kg7 1-0

[Event "IND-ch Senior Open 2019"]
[Site "Mazitar"]
[Date "2019.12.11"]
[Round "2.17"]
[White "Surendran N"]
[Black "Akash G"]
[Result "0-1"]
[ECO "A28"]
[WhiteElo "2142"]
[BlackElo "2431"]
[Annotator "NA"]
[PlyCount "70"]
[EventDate "2018.12.08"]
[EventType "swiss"]
[EventRounds "11"]
[EventCountry "IND"]
[SourceTitle "playchess.com"]
[Source "ChessBase"]
[SourceQuality "1"]
[TimeControl "40/5400+30:1800+30"]

1. c4 e5 2. Nc3 Nf6 3. Nf3 Nc6 4. e3 Bb4 5. Qc2 Qe7 6. Nd5 Nxd5 7. cxd5 e4 8. dxc6 exf3 9. gxf3 dxc6 10. b3 Qf6 11. Bb2 Qxf3 12. Rg1 Bf5 13. Qc4 Bxd2+ 14. Kxd2 Qxf2+ 15. Be2 O-O-O+ 16. Bd4 Rhe8 17. Rg3 Re4 18. Rf1 Rdxd4+ 19. exd4 Rxd4+ 20. Rd3 Bxd3 21. Rxf2 Bxc4+ 22. Kc3 Bxe2 23. Kxd4 Bh5 24. Rg2 g6 25. Ke5 Bf3 26. Rf2 Bd5 27. b4 b6 28. b5 f5 29. h4 Kb7 30. Rd2 Be4 31. Rd7 cxb5 32. Rxh7 Bf3 33. Rg7 Bh5 34. Ke6 b4 35. Rd7 a5 0-1

[Event "IND-ch Senior Open 2019"]
[Site "Mazitar"]
[Date "2019.12.11"]
[Round "2.19"]
[White "Chilukuri Sai Varshith"]
[Black "Karthikeyan, P.."]
[Result "0-1"]
[ECO "E11"]
[WhiteElo "2118"]
[BlackElo "2423"]
[Annotator "NA"]
[PlyCount "73"]
[EventDate "2018.12.08"]
[EventType "swiss"]
[EventRounds "11"]
[EventCountry "IND"]
[SourceTitle "playchess.com"]
[Source "ChessBase"]
[SourceQuality "1"]
[TimeControl "40/5400+30:1800+30"]

1. d4 Nf6 2. c4 e6 3. Nf3 Bb4+ 4. Nbd2 O-O 5. a3 Be7 6. e4 d6 7. g3 c5 8. Bg2 cxd4 9. Nxd4 Nc6 10. N2b3 Ne5 11. Qe2 Qc7 12. Nd2 Qb6 13. N2b3 Bd7 14. f4 Ba4 15. fxe5 dxe5 16. c5 Qa6 17. Qxa6 bxa6 18. Na5 exd4 19. b4 e5 20. Bg5 h6 21. Bxf6 Bxf6 22. Bf1 Bd8 23. Nc4 Bc6 24. Bd3 f5 25. Nxe5 Bxe4 26. Bc4+ Kh7 27. O-O Bg5 28. Kf2 Be3+ 29. Ke2 Rfe8 30. Nd3 g5 31. Bxa6 f4 32. Bc4 Bg2 33. Rfb1 f3+ 34. Kd1 Bg1 35. Ne1 Bxh2 36. Bd3+ Kg7 37. Ra2 0-1

[Event "IND-ch Senior Open 2019"]
[Site "Mazitar"]
[Date "2019.12.11"]
[Round "2.20"]
[White "Mohammad Nubairshah Shaikh"]
[Black "Manishi, Krishna"]
[Result "1-0"]
[ECO "D90"]
[WhiteElo "2421"]
[BlackElo "2104"]
[Annotator "NA"]
[PlyCount "59"]
[EventDate "2018.12.08"]
[EventType "swiss"]
[EventRounds "11"]
[EventCountry "IND"]
[SourceTitle "playchess.com"]
[Source "ChessBase"]
[SourceQuality "1"]
[TimeControl "40/5400+30:1800+30"]

1. d4 Nf6 2. c4 g6 3. Nc3 d5 4. Nf3 Bg7 5. h4 O-O 6. cxd5 Nxd5 7. h5 c5 8. hxg6 hxg6 9. Bh6 Bxh6 10. Rxh6 Nxc3 11. bxc3 Kg7 12. Qd2 Rh8 13. Rxh8 Qxh8 14. Qg5 cxd4 15. Qe5+ Kg8 16. Qxe7 Nc6 17. Qe8+ Kg7 18. Qxh8+ Kxh8 19. cxd4 Bf5 20. Kd2 Kg7 21. e3 Nb4 22. a3 Nd5 23. Rc1 Rc8 24. Rxc8 Bxc8 25. e4 Nb6 26. Ne5 f6 27. Nc4 Nxc4+ 28. Bxc4 Kf8 29. f4 Ke7 30. e5 1-0

[Event "IND-ch Senior Open 2019"]
[Site "Mazitar"]
[Date "2019.12.11"]
[Round "2.21"]
[White "Ramu, K.."]
[Black "Gusain, Himal"]
[Result "0-1"]
[ECO "B47"]
[WhiteElo "2113"]
[BlackElo "2412"]
[Annotator "NA"]
[PlyCount "98"]
[EventDate "2018.12.08"]
[EventType "swiss"]
[EventRounds "11"]
[EventCountry "IND"]
[SourceTitle "playchess.com"]
[Source "ChessBase"]
[SourceQuality "1"]
[TimeControl "40/5400+30:1800+30"]

1. e4 c5 2. Nf3 Nc6 3. d4 cxd4 4. Nxd4 e6 5. Nc3 Qc7 6. g3 a6 7. Bg2 Nf6 8. O-O h5 9. h3 Bc5 10. Nde2 h4 11. g4 b5 12. Bf4 Ne5 13. Bh2 Bb7 14. Nf4 b4 15. g5 Nh7 16. g6 bxc3 17. gxf7+ Kxf7 18. Qh5+ Kg8 19. Ng6 d6 20. Nxh8 Kxh8 21. bxc3 Qf7 22. Qxf7 Nxf7 23. Kh1 Nf6 24. Rae1 e5 25. f4 Re8 26. fxe5 dxe5 27. Bg1 Bxg1 28. Kxg1 Nd6 29. Rf2 Bxe4 30. Bxe4 Ndxe4 31. Rf5 g6 32. Rf3 Kg7 33. c4 Nc5 34. Ref1 Re6 35. Rd1 e4 36. Re3 Rc6 37. Rb1 Nfd7 38. Rd1 Ne5 39. Rd5 Kf6 40. Kf2 Nxc4 41. Re1 Nd6 42. Rb1 Nf5 43. Rb4 e3+ 44. Ke2 Ne6 45. Ke1 Ng5 46. a4 Nxh3 47. Rxf5+ Kxf5 48. Rxh4 Nf4 49. Rh6 Rb6 0-1

[Event "IND-ch Senior Open 2019"]
[Site "Mazitar"]
[Date "2019.12.11"]
[Round "2.23"]
[White "Kamdar Udit"]
[Black "Padmini, Rout"]
[Result "1-0"]
[ECO "B23"]
[WhiteElo "2107"]
[BlackElo "2407"]
[Annotator "NA"]
[PlyCount "81"]
[EventDate "2018.12.08"]
[EventType "swiss"]
[EventRounds "11"]
[EventCountry "IND"]
[SourceTitle "playchess.com"]
[Source "ChessBase"]
[SourceQuality "1"]
[TimeControl "40/5400+30:1800+30"]

1. e4 c5 2. Nc3 e6 3. Nge2 Nc6 4. g3 d5 5. exd5 exd5 6. d4 Bg4 7. Bg2 Nxd4 8. h3 Bf3 9. Kf1 Bxg2+ 10. Kxg2 Nxe2 11. Qxe2+ Be7 12. Qb5+ Qd7 13. Qxd7+ Kxd7 14. Nxd5 Kc6 15. c4 Bd6 16. Re1 h5 17. Bd2 Rd8 18. Rad1 Nh6 19. Bg5 Rde8 20. Bxh6 Rxe1 21. Rxe1 Rxh6 22. f4 Rh8 23. Kf3 g6 24. Nc3 a6 25. Rd1 Rb8 26. a4 Bf8 27. b3 b6 28. Rd5 f5 29. Rd3 Bg7 30. Nd5 Rb7 31. Re3 Kd6 32. Re8 b5 33. Ra8 bxc4 34. bxc4 Rb3+ 35. Kg2 Rb2+ 36. Kf1 Bd4 37. Rxa6+ Kd7 38. Rxg6 Kc8 39. a5 Kb7 40. Rb6+ Ka7 41. Nc7 1-0

[Event "IND-ch Senior Open 2019"]
[Site "Mazitar"]
[Date "2019.12.11"]
[Round "2.25"]
[White "Singh, Soram Rahul"]
[Black "Himanshu, Sharma"]
[Result "0-1"]
[ECO "A50"]
[WhiteElo "2088"]
[BlackElo "2392"]
[Annotator "NA"]
[PlyCount "64"]
[EventDate "2018.12.08"]
[EventType "swiss"]
[EventRounds "11"]
[EventCountry "IND"]
[SourceTitle "playchess.com"]
[Source "ChessBase"]
[SourceQuality "1"]
[TimeControl "40/5400+30:1800+30"]

1. d4 Nf6 2. c4 c6 3. Nc3 d5 4. e3 a6 5. Nf3 b5 6. b3 Bg4 7. h3 Bh5 8. g4 Bg6 9. Ne5 e6 10. h4 Bb4 11. Bd2 dxc4 12. h5 Bd3 13. Bxd3 cxd3 14. Nxd3 Be7 15. Qf3 Nd5 16. Ne4 Nd7 17. Rc1 Qb6 18. g5 Rf8 19. Qh3 O-O-O 20. g6 hxg6 21. hxg6 f5 22. Nec5 Nxc5 23. Nxc5 Bxc5 24. Rxc5 e5 25. Rg1 exd4 26. exd4 Qc7 27. Kd1 Rde8 28. f3 Kb7 29. Re1 Rxe1+ 30. Kxe1 Qe7+ 31. Kd1 Qf6 32. Rc2 Qxd4 0-1

[Event "IND-ch Senior Open 2019"]
[Site "Mazitar"]
[Date "2019.12.11"]
[Round "3.1"]
[White "Gupta, Abhijeet"]
[Black "Mohammad Nubairshah Shaikh"]
[Result "1-0"]
[ECO "D15"]
[WhiteElo "2611"]
[BlackElo "2421"]
[Annotator "ChessBase"]
[PlyCount "38"]
[EventDate "2018.12.08"]
[EventType "swiss"]
[EventCountry "IND"]
[SourceTitle "playchess.com"]
[Source "ChessBase"]
[SourceQuality "1"]
[TimeControl "40/5400+30:1800+30"]

1. d4 {[%emt 0:00:00]} d5 {[%emt 0:00:00]} 2. c4 {[%emt 0:00:00]} c6 {[%emt 0:00:00]} 3. Nf3 {[%emt 0:00:00]} Nf6 {[%emt 0:00:07]} 4. Nc3 {[%emt 0:00:30]} dxc4 {[%emt 0:00:00]} 5. e4 {[%emt 0:00:12]} b5 {[%emt 0:00:00]} 6. Be2 {[%emt 0:00:30]} e6 {[%emt 0:00:20]} 7. O-O {[%emt 0:00:30]} Be7 {[%emt 0:00:30]} 8. a4 {[%emt 0:00:30]} b4 {[%emt 0:00:30]} 9. e5 {[%emt 0:04:57]} bxc3 {[%emt 0:03:59]} 10. exf6 {[%emt 0:01:58]} Bxf6 {[%emt 0:00:09]} 11. bxc3 {[%emt 0:00:04]} Ba6 {[%emt 0:00:31]} 12. Ne5 {[%emt 0:04:51]} O-O {[%emt 0:05:34]} 13. Bf3 {[%emt 0:00:24]} Nd7 {[%emt 0:14:51]} 14. Nxc6 {[%emt 0:26:57]} Qc7 {[%emt 0:00:57]} 15. Rb1 {[%emt 0:01:25]} Nb6 {[%emt 0:00:30]} 16. Nb4 {[%emt 0:00:30]} Bb7 {[%emt 0:00:30]} 17. a5 {[%emt 0:02:41]} Nd5 {[%emt 0:12:32]} 18. a6 {[%emt 0:00:56]} Bc6 {[%emt 0:06:15]} 19. Bxd5 {[%emt 0:03:21]} exd5 {[%emt 0:12:05]} 1-0

[Event "IND-ch Senior Open 2019"]
[Site "Mazitar"]
[Date "2019.12.11"]
[Round "3.2"]
[White "Karthikeyan, P.."]
[Black "Aravindh, Chithambaram VR."]
[Result "0-1"]
[ECO "D37"]
[WhiteElo "2423"]
[BlackElo "2605"]
[Annotator "ChessBase"]
[PlyCount "70"]
[EventDate "2018.12.08"]
[EventType "swiss"]
[EventCountry "IND"]
[SourceTitle "playchess.com"]
[Source "ChessBase"]
[SourceQuality "1"]
[TimeControl "40/5400+30:1800+30"]

1. d4 {[%emt 0:00:00]} Nf6 {[%emt 0:00:00]} 2. Nf3 {[%emt 0:00:02]} d5 {[%emt 0:00:08]} 3. c4 {[%emt 0:00:14]} e6 {[%emt 0:00:11]} 4. Nc3 {[%emt 0:00:14]} a6 {[%emt 0:00:47]} 5. cxd5 {[%emt 0:00:51]} exd5 {[%emt 0:00:06]} 6. Bg5 {[%emt 0:00:07]} Be6 {[%emt 0:00:10]} 7. e3 {[%emt 0:00:37]} Nbd7 {[%emt 0:00:18]} 8. Bd3 {[%emt 0:00:30]} c6 {[%emt 0:01:18]} 9. Ne5 {[%emt 0:03:32]} Be7 {[%emt 0:25:21]} 10. f4 {[%emt 0:03:16]} Ng8 {[%emt 0:02:10]} 11. Bxe7 {[%emt 0:02:05]} Nxe7 {[%emt 0:01:09]} 12. Qc2 {[%emt 0:00:14]} f6 {[%emt 0:03:05]} 13. Nxd7 {[%emt 0:02:30]} Qxd7 {[%emt 0:00:53]} 14. Na4 {[%emt 0:00:08]} Qc7 {[%emt 0:02:17]} 15. Nc5 {[%emt 0:00:37]} Bc8 {[%emt 0:00:34]} 16. O-O-O {[%emt 0:05:24]} g6 {[%emt 0:06:58]} 17. h4 {[%emt 0:01:29]} b6 {[%emt 0:07:13]} 18. Na4 {[%emt 0:00:08]} Bg4 {[%emt 0:05:44]} 19. Be2 {[%emt 0:05:31]} Bxe2 {[%emt 0:19:50]} 20. Qxe2 {[%emt 0:00:12]} h5 {[%emt 0:00:20]} 21. g4 {[%emt 0:01:58]} hxg4 {[%emt 0:06:01]} 22. Qxg4 {[%emt 0:00:27]} Rh5 {[%emt 0:00:32]} 23. Qe6 {[%emt 0:06:08]} Rd8 {[%emt 0:00:51]} 24. Qxf6 {[%emt 0:04:43]} Rd6 {[%emt 0:01:58]} 25. Qg7 {[%emt 0:00:18]} Re6 {[%emt 0:01:08]} 26. Rd3 {[%emt 0:03:22]} Qd6 {[%emt 0:04:20]} 27. Rg1 {[%emt 0:07:18]} Rf6 {[%emt 0:02:00]} 28. Rg5 {[%emt 0:02:23]} Rxh4 {[%emt 0:00:06]} 29. Nxb6 {[%emt 0:05:50]} Rhxf4 {[%emt 0:03:40]} 30. Re5 {[%emt 0:35:13]} Rf1+ {[%emt 0:00:05]} 31. Rd1 {[%emt 0:00:01]} Qb4 {[%emt 0:00:37]} 32. Qg8+ {[%emt 0:00:16]} Rf8 {[%emt 0:00:04]} 33. Qe6 {[%emt 0:00:07]} Rxd1+ {[%emt 0:00:43]} 34. Kxd1 {[%emt 0:00:02]} Rf1+ {[%emt 0:00:07]} 35. Ke2 {[%emt 0:00:04]} Qb5+ {[%emt 0:00:11]} 0-1

[Event "IND-ch Senior Open 2019"]
[Site "Mazitar"]
[Date "2019.12.11"]
[Round "3.4"]
[White "Lalith Babu M R"]
[Black "Rajesh, V A V"]
[Result "1-0"]
[ECO "A22"]
[WhiteElo "2556"]
[BlackElo "2393"]
[Annotator "ChessBase"]
[PlyCount "22"]
[EventDate "2018.12.08"]
[EventType "swiss"]
[EventCountry "IND"]
[SourceTitle "playchess.com"]
[Source "ChessBase"]
[SourceQuality "1"]
[TimeControl "40/5400+30:1800+30"]

1. c4 {[%emt 0:00:00]} Nf6 {[%emt 0:00:08]} 2. Nc3 {[%emt 0:00:08]} e5 {[%emt 0:01:57]} 3. g3 {[%emt 0:00:04]} Bb4 {[%emt 0:02:04]} 4. Bg2 {[%emt 0:00:27]} O-O 5. Nf3 {[%emt 0:08:13]} Re8 {[%emt 0:06:15]} 6. O-O {[%emt 0:02:46]} Nc6 {[%emt 0:13:48]} 7. Nd5 {[%emt 0:00:30]} Bc5 {[%emt 0:16:25]} 8. d3 h6 9. Nd2 {[%emt 0:15:53]} Nxd5 {[%emt 0:12:04]} 10. cxd5 {[%emt 0:00:20]} Nd4 {[%emt 0:01:24]} 11. e3 {[%emt 0:07:00]} Nf5 {[%emt 0:00:20]} 1-0